[Event "Championnat d'Europe de Blitz"]
[Date "2024.12.09"]
[White "Markovski, Velo"]
[Black "Koelle, Tobias"]
[WhiteElo "1945"]
[BlackElo "2437"]
[Round "1.32"]
[Result "0-1"]
[TimeControl "180+2"]

1. e4 {[%emt 00:00:01] [%clk 00:03:03]} c5 {[%emt 00:00:11] [%clk 00:02:49]} 2.
Nf3 {[%clk 00:03:04]} d6 {[%emt 00:00:07] [%clk 00:02:49]} 3. Bc4 {[%emt
00:00:07] [%clk 00:03:00]} Nf6 {[%emt 00:00:01] [%clk 00:02:50]} 4. Qe2 {[%clk
00:03:01]} e6 {[%emt 00:00:01] [%clk 00:02:51]} 5. c3 {[%emt 00:00:01] [%clk
00:03:01]} Be7 {[%emt 00:00:02] [%clk 00:02:52]} 6. d4 {[%emt 00:00:05] [%clk
00:02:57]} cxd4 {[%emt 00:00:02] [%clk 00:02:52]} 7. cxd4 {[%emt 00:00:01] [%clk
00:02:58]} d5 {[%emt 00:00:04] [%clk 00:02:50]} 8. exd5 {[%emt 00:00:06] [%clk
00:02:54]} Nxd5 {[%emt 00:00:01] [%clk 00:02:51]} 9. O-O {[%emt 00:00:10] [%clk
00:02:46]} O-O {[%emt 00:00:02] [%clk 00:02:50]} 10. Nc3 {[%emt 00:00:05] [%clk
00:02:43]} Nc6 {[%emt 00:00:03] [%clk 00:02:49]} 11. a3 {[%emt 00:00:11] [%clk
00:02:35]} Bf6 {[%emt 00:00:01] [%clk 00:02:49]} 12. Be3 {[%emt 00:00:07] [%clk
00:02:29]} Nxe3 {[%emt 00:00:06] [%clk 00:02:46]} 13. fxe3 {[%emt 00:00:02]
[%clk 00:02:30]} b6 {[%emt 00:00:03] [%clk 00:02:45]} 14. Bd3 {[%emt 00:00:17]
[%clk 00:02:15]} Bb7 {[%emt 00:00:02] [%clk 00:02:45]} 15. Rac1 {[%emt 00:00:01]
[%clk 00:02:16]} g6 {[%emt 00:00:05] [%clk 00:02:41]} 16. Ne4 {[%emt 00:00:03]
[%clk 00:02:15]} Bg7 {[%emt 00:00:01] [%clk 00:02:42]} 17. b4 {[%emt 00:00:29]
[%clk 00:01:48]} Ne7 {[%emt 00:00:08] [%clk 00:02:35]} 18. Ng3 {[%emt 00:00:15]
[%clk 00:01:35]} Nd5 {[%emt 00:00:03] [%clk 00:02:34]} 19. Be4 {[%emt 00:00:38]
[%clk 00:00:59]} a5 {[%emt 00:00:04] [%clk 00:02:33]} 20. b5 {[%emt 00:00:05]
[%clk 00:00:55]} Qd6 {[%clk 00:02:34]} 21. a4 {[%emt 00:00:05] [%clk 00:00:52]}
Rac8 {[%emt 00:00:04] [%clk 00:02:31]} 22. Bxd5 {[%emt 00:00:19] [%clk
00:00:37]} Qxd5 {[%emt 00:00:03] [%clk 00:02:30]} 23. e4 {[%emt 00:00:08] [%clk
00:00:30]} Qb3 {[%emt 00:00:03] [%clk 00:02:28]} 24. Rxc8 {[%emt 00:00:17] [%clk
00:00:15]} Rxc8 {[%emt 00:00:02] [%clk 00:02:29]} 25. e5 {[%emt 00:00:05] [%clk
00:00:11]} Qxa4 {[%emt 00:00:10] [%clk 00:02:21]} 26. Ng5 {[%emt 00:00:02] [%clk
00:00:12]} Qxd4+ {[%emt 00:00:02] [%clk 00:02:21]} 27. Kh1 {[%emt 00:00:02]
[%clk 00:00:11]} Rf8 {[%emt 00:00:13] [%clk 00:02:10]} 28. N3e4 {[%emt 00:00:05]
[%clk 00:00:09]} Qxe5 {[%emt 00:00:02] [%clk 00:02:09]} 29. Qc4 {[%emt 00:00:03]
[%clk 00:00:08]} h6 {[%emt 00:00:03] [%clk 00:02:08]} 0-1

[Site "Europe Echecs"]

[Event "Championnat d'Europe de Blitz"]
[Date "2024.12.09"]
[White "Livaic, Leon"]
[Black "Stangl, Anita, Dr."]
[WhiteElo "2560"]
[BlackElo "2027"]
[Round "1.33"]
[Result "1-0"]
[TimeControl "180+2"]

1. d4 {[%clk 00:03:01]} e6 {[%clk 00:03:04]} 2. c4 {[%emt 00:00:02] [%clk
00:03:01]} d5 {[%emt 00:00:01] [%clk 00:03:05]} 3. Nf3 {[%emt 00:00:01] [%clk
00:03:01]} c6 {[%clk 00:03:07]} 4. Nbd2 {[%emt 00:00:03] [%clk 00:02:59]} f5
{[%emt 00:00:03] [%clk 00:03:06]} 5. e3 {[%emt 00:00:03] [%clk 00:02:59]} Bd6
{[%emt 00:00:04] [%clk 00:03:04]} 6. Be2 {[%emt 00:00:04] [%clk 00:02:57]} Nd7
{[%emt 00:00:03] [%clk 00:03:03]} 7. O-O {[%emt 00:00:04] [%clk 00:02:55]} Ngf6
{[%emt 00:00:02] [%clk 00:03:04]} 8. Rb1 {[%emt 00:00:06] [%clk 00:02:50]} O-O
{[%emt 00:00:05] [%clk 00:03:01]} 9. b4 {[%emt 00:00:01] [%clk 00:02:51]} Ne4
{[%emt 00:00:06] [%clk 00:02:57]} 10. Qc2 {[%emt 00:00:04] [%clk 00:02:49]} g5
{[%emt 00:00:24] [%clk 00:02:35]} 11. c5 {[%emt 00:00:12] [%clk 00:02:40]} Bb8
{[%emt 00:00:10] [%clk 00:02:27]} 12. Bb2 {[%emt 00:00:04] [%clk 00:02:38]} Qe7
{[%emt 00:00:30] [%clk 00:01:58]} 13. Ne5 {[%emt 00:00:07] [%clk 00:02:33]} Nxe5
{[%emt 00:00:08] [%clk 00:01:53]} 14. dxe5 {[%emt 00:00:02] [%clk 00:02:32]} Qg7
{[%emt 00:00:01] [%clk 00:01:54]} 15. f4 {[%emt 00:00:12] [%clk 00:02:23]} Bd7
{[%emt 00:00:07] [%clk 00:01:49]} 16. Bd4 {[%emt 00:00:10] [%clk 00:02:14]} Be8
{[%emt 00:00:12] [%clk 00:01:39]} 17. b5 {[%emt 00:00:02] [%clk 00:02:14]} g4
{[%emt 00:00:40] [%clk 00:01:02]} 18. Nxe4 {[%emt 00:00:16] [%clk 00:02:00]}
fxe4 {[%emt 00:00:15] [%clk 00:00:48]} 19. Rb3 {[%emt 00:00:04] [%clk 00:01:58]}
Bc7 {[%emt 00:00:20] [%clk 00:00:30]} 20. Rfb1 {[%emt 00:00:01] [%clk 00:01:59]}
Bd8 {[%emt 00:00:10] [%clk 00:00:22]} 21. bxc6 {[%emt 00:00:04] [%clk 00:01:57]}
Bxc6 {[%emt 00:00:01] [%clk 00:00:23]} 22. Bb5 {[%emt 00:00:02] [%clk 00:01:57]}
g3 {[%emt 00:00:04] [%clk 00:00:21]} 23. h3 {[%emt 00:00:05] [%clk 00:01:54]} a6
{[%emt 00:00:10] [%clk 00:00:13]} 24. Bxc6 {[%emt 00:00:02] [%clk 00:01:55]}
bxc6 {[%clk 00:00:14]} 25. R3b2 {[%emt 00:00:20] [%clk 00:01:36]} Ba5 {[%emt
00:00:03] [%clk 00:00:14]} 26. Qa4 {[%emt 00:00:03] [%clk 00:01:35]} Qc7 {[%emt
00:00:06] [%clk 00:00:10]} 27. Rb7 {[%emt 00:00:02] [%clk 00:01:35]} Qd8 {[%emt
00:00:01] [%clk 00:00:11]} 28. Qxc6 {[%emt 00:00:03] [%clk 00:01:34]} Re8 {[%emt
00:00:05] [%clk 00:00:08]} 29. Rd7 {[%emt 00:00:06] [%clk 00:01:30]} Qc8 {[%emt
00:00:02] [%clk 00:00:09]} 30. Qb7 {[%emt 00:00:17] [%clk 00:01:15]} Qxb7 {[%emt
00:00:05] [%clk 00:00:06]} 31. Rbxb7 {[%clk 00:01:16]} Bd2 {[%clk 00:00:07]} 32.
c6 {[%emt 00:00:06] [%clk 00:01:12]} Rec8 {[%emt 00:00:02] [%clk 00:00:07]} 33.
Rg7+ {[%emt 00:00:03] [%clk 00:01:11]} Kf8 {[%clk 00:00:08]} 34. Bc5+ {[%emt
00:00:01] [%clk 00:01:12]} 1-0

[Site "Europe Echecs"]

[Event "Championnat d'Europe de Blitz"]
[Date "2024.12.09"]
[White "Masha, Rexhep"]
[Black "Beerdsen, Thomas"]
[WhiteElo "1909"]
[BlackElo "2502"]
[Round "1.34"]
[Result "0-1"]
[TimeControl "180+2"]

1. e4 {[%emt 00:11:49] [%clk 00:03:02]} e5 {[%emt 00:00:01] [%clk 00:03:03]} 2.
Nf3 {[%emt 00:00:02] [%clk 00:03:03]} Nc6 {[%emt 00:00:01] [%clk 00:03:04]} 3.
Bb5 {[%clk 00:03:04]} f5 {[%emt 00:00:01] [%clk 00:03:05]} 4. Nc3 {[%emt
00:00:02] [%clk 00:03:05]} fxe4 {[%emt 00:00:01] [%clk 00:03:05]} 5. Nxe4 {[%clk
00:03:06]} Nf6 {[%emt 00:00:01] [%clk 00:03:06]} 6. d3 {[%emt 00:00:02] [%clk
00:03:06]} d5 {[%emt 00:00:03] [%clk 00:03:04]} 7. Nxf6+ {[%emt 00:00:03] [%clk
00:03:06]} Qxf6 {[%emt 00:00:02] [%clk 00:03:03]} 8. Bg5 {[%emt 00:00:12] [%clk
00:02:57]} Qf5 {[%emt 00:00:06] [%clk 00:02:59]} 9. O-O {[%emt 00:00:18] [%clk
00:02:41]} Bd6 {[%emt 00:00:02] [%clk 00:02:59]} 10. Bh4 {[%clk 00:02:29]} O-O
{[%emt 00:00:15] [%clk 00:02:59]} 11. Bg3 {[%emt 00:00:02] [%clk 00:02:30]} Bd7
{[%emt 00:00:18] [%clk 00:02:42]} 12. c4 {[%emt 00:00:09] [%clk 00:02:24]} a6
{[%emt 00:00:04] [%clk 00:02:41]} 13. Bxc6 {[%emt 00:00:01] [%clk 00:02:24]}
Bxc6 {[%emt 00:00:03] [%clk 00:02:40]} 14. Nh4 {[%emt 00:00:13] [%clk 00:02:14]}
Qe6 {[%emt 00:00:07] [%clk 00:02:34]} 15. Qc2 {[%emt 00:00:04] [%clk 00:02:12]}
dxc4 {[%emt 00:00:06] [%clk 00:02:30]} 16. dxc4 {[%emt 00:00:04] [%clk
00:02:10]} g5 {[%emt 00:00:06] [%clk 00:02:25]} 17. Nf3 {[%emt 00:00:11]} Rxf3
{[%emt 00:00:11] [%clk 00:02:14]} 18. gxf3 {[%emt 00:00:01] [%clk 00:02:04]}
Bxf3 {[%emt 00:00:02] [%clk 00:02:14]} 19. Qd3 {[%emt 00:00:18] [%clk 00:01:48]}
Rf8 {[%emt 00:00:05] [%clk 00:02:11]} 20. Rfe1 {[%emt 00:00:02] [%clk 00:01:49]}
Bc6 {[%emt 00:00:45] [%clk 00:01:28]} 21. c5 {[%emt 00:00:10] [%clk 00:01:40]}
Rf3 {[%emt 00:00:03] [%clk 00:01:26]} 22. Qf1 {[%emt 00:00:16] [%clk 00:01:27]}
Bxc5 {[%emt 00:00:04] [%clk 00:01:25]} 23. Rxe5 {[%emt 00:00:03] [%clk
00:01:26]} Rxg3+ {[%emt 00:00:03] [%clk 00:01:25]} 24. hxg3 {[%clk 00:01:26]}
Qxe5 {[%clk 00:01:26]} 25. Re1 {[%emt 00:00:09] [%clk 00:01:19]} Qxg3+ {[%emt
00:00:02] [%clk 00:01:26]} 0-1

[Site "Europe Echecs"]

[Event "Championnat d'Europe de Blitz"]
[Date "2024.12.09"]
[White "Saric, Ante"]
[Black "Stojkoski, Acko"]
[WhiteElo "2482"]
[BlackElo "2030"]
[Round "1.35"]
[Result "1-0"]
[TimeControl "180+2"]

1. Nf3 {[%emt 00:04:12]} d5 {[%emt 00:00:05]} 2. g3 {[%emt 00:00:01]} Nf6 {[%emt
00:00:02]} 3. Bg2 c6 4. O-O {[%emt 00:00:01]} g6 5. b3 {[%emt 00:00:03]} Bg7 6.
Bb2 O-O {[%emt 00:00:01]} 7. c4 {[%emt 00:00:01]} e6 {[%emt 00:00:02]} 8. d4
{[%emt 00:00:03]} Nbd7 {[%emt 00:00:04]} 9. Nc3 {[%emt 00:00:04]} Re8 {[%emt
00:00:09]} 10. Qc2 {[%emt 00:00:05]} Nf8 {[%emt 00:00:03]} 11. e4 {[%emt
00:00:03]} Nxe4 {[%emt 00:00:02]} 12. Nxe4 dxe4 13. Qxe4 {[%emt 00:00:01]} Nd7
{[%emt 00:00:08]} 14. Rad1 {[%emt 00:00:02]} Nf6 {[%emt 00:00:02]} 15. Qc2
{[%emt 00:00:06]} Qc7 {[%emt 00:00:03]} 16. Bc1 {[%emt 00:00:10]} Nh5 {[%emt
00:00:20]} 17. Rfe1 {[%emt 00:00:02]} Rd8 {[%emt 00:00:05]} 18. Bg5 {[%emt
00:00:05]} Bf6 {[%emt 00:00:13]} 19. h4 {[%emt 00:00:13]} Bd7 {[%emt 00:00:23]}
20. Ne5 {[%emt 00:00:07]} Be8 {[%emt 00:00:21]} 21. c5 {[%emt 00:00:08]} Qe7
{[%emt 00:00:13]} 22. Qc1 {[%emt 00:00:06]} Bxg5 {[%emt 00:00:04]} 23. hxg5
{[%emt 00:00:03]} Rac8 {[%emt 00:00:50]} 24. Be4 {[%emt 00:00:11]} f6 {[%emt
00:00:13]} 25. gxf6 {[%emt 00:00:07]} Nxf6 {[%emt 00:00:02]} 26. Bf3 {[%emt
00:00:09]} Nd7 {[%emt 00:00:07]} 27. Nc4 {[%emt 00:00:03]} Rc7 {[%emt 00:00:14]}
28. Bg4 {[%emt 00:00:10]} Nf8 {[%emt 00:00:03]} 29. Qe3 {[%emt 00:00:09]} Bf7
{[%emt 00:00:01]} 30. Nd6 {[%emt 00:00:05]} Rxd6 {[%emt 00:00:03]} 31. cxd6 Qxd6
{[%emt 00:00:01]} 32. Qe5 {[%emt 00:00:16]} Rd7 {[%emt 00:00:06]} 33. Kg2 {[%emt
00:00:02]} Qxe5 {[%emt 00:00:05]} 34. dxe5 {[%emt 00:00:02]} Rd5 35. Bf3 {[%emt
00:00:02]} Ra5 {[%emt 00:00:03]} 36. Re2 {[%emt 00:00:04]} Kg7 {[%emt 00:00:01]}
37. Rd8 {[%emt 00:00:05]} h5 {[%emt 00:00:02]} 38. a4 {[%emt 00:00:02]} Rc5
{[%emt 00:00:02]} 39. Rb8 {[%emt 00:00:03]} b6 {[%emt 00:00:06]} 1-0

[Site "Europe Echecs"]

[Event "Championnat d'Europe de Blitz"]
[Date "2024.12.09"]
[White "Karaivanova, Petya"]
[Black "Janik, Igor"]
[WhiteElo "1939"]
[BlackElo "2515"]
[Round "1.36"]
[Result "0-1"]
[TimeControl "180+2"]

1. e4 {[%emt 00:00:02] [%clk 00:03:02]} c6 {[%clk 00:03:04]} 2. d4 {[%emt
00:00:03] [%clk 00:03:03]} d5 {[%clk 00:03:05]} 3. e5 {[%clk 00:03:04]} c5
{[%clk 00:03:06]} 4. Nf3 {[%emt 00:00:01] [%clk 00:03:04]} Bg4 {[%clk 00:03:08]}
5. dxc5 {[%emt 00:00:09] [%clk 00:02:58]} e6 {[%clk 00:03:09]} 6. Be3 {[%emt
00:00:26] [%clk 00:02:34]} Ne7 {[%emt 00:00:02] [%clk 00:03:09]} 7. c3 {[%emt
00:00:02] [%clk 00:02:34]} Nd7 {[%emt 00:00:02] [%clk 00:03:09]} 8. Bb5 {[%emt
00:00:06] [%clk 00:02:31]} Nc6 {[%emt 00:00:02] [%clk 00:03:09]} 9. Bd4 {[%emt
00:00:06] [%clk 00:02:27]} Bxf3 {[%emt 00:00:06] [%clk 00:03:06]} 10. Qxf3
{[%emt 00:00:01] [%clk 00:02:27]} Bxc5 {[%emt 00:00:02] [%clk 00:03:06]} 11.
Bxc6 {[%emt 00:00:13] [%clk 00:02:16]} bxc6 {[%emt 00:00:01] [%clk 00:03:07]}
12. Nd2 {[%emt 00:00:02] [%clk 00:02:16]} Bxd4 {[%emt 00:00:15] [%clk 00:02:54]}
13. cxd4 {[%emt 00:00:02] [%clk 00:02:17]} Qb6 {[%clk 00:02:55]} 14. Nb3 {[%emt
00:00:01] [%clk 00:02:17]} a5 {[%clk 00:02:56]} 15. O-O {[%emt 00:01:21] [%clk
00:00:58]} a4 {[%emt 00:00:02] [%clk 00:02:57]} 16. Nd2 {[%emt 00:00:04] [%clk
00:00:56]} Qxd4 {[%emt 00:00:06] [%clk 00:02:54]} 17. Rfd1 {[%emt 00:00:11]
[%clk 00:00:47]} O-O {[%emt 00:00:09] [%clk 00:02:47]} 18. Rac1 {[%emt 00:00:02]
[%clk 00:00:47]} Qxb2 {[%emt 00:00:05] [%clk 00:02:44]} 0-1

[Site "Europe Echecs"]

[Event "Championnat d'Europe de Blitz"]
[Date "2024.12.09"]
[White "Georgiev, Kiril"]
[Black "Chuchukova, Stefani"]
[WhiteElo "2537"]
[BlackElo "1868"]
[Round "1.37"]
[Result "1-0"]
[TimeControl "180+2"]

1. c4 {[%emt 00:00:03] [%clk 00:02:59]} Nf6 {[%emt 00:00:02] [%clk 00:03:03]} 2.
Nc3 {[%emt 00:00:01] [%clk 00:03:00]} e6 {[%emt 00:00:02] [%clk 00:03:04]} 3. e4
{[%emt 00:00:03] [%clk 00:02:58]} d5 {[%emt 00:00:30] [%clk 00:02:36]} 4. e5
{[%emt 00:00:04] [%clk 00:02:55]} d4 {[%emt 00:00:02] [%clk 00:02:37]} 5. exf6
{[%emt 00:00:02] [%clk 00:02:55]} dxc3 {[%emt 00:00:02] [%clk 00:02:37]} 6. bxc3
{[%emt 00:00:05] [%clk 00:02:51]} gxf6 {[%emt 00:00:06] [%clk 00:02:33]} 7. d4
{[%emt 00:00:06] [%clk 00:02:46]} c5 {[%emt 00:00:08] [%clk 00:02:28]} 8. d5
{[%emt 00:00:11] [%clk 00:02:36]} Bg7 {[%emt 00:00:12] [%clk 00:02:19]} 9. Nf3
{[%emt 00:00:02] [%clk 00:02:36]} Qe7 {[%emt 00:00:20] [%clk 00:02:02]} 10. Be2
{[%emt 00:00:15] [%clk 00:02:22]} f5 {[%emt 00:00:15] [%clk 00:01:50]} 11. O-O
{[%emt 00:00:04] [%clk 00:02:19]} Bxc3 {[%emt 00:00:04] [%clk 00:01:49]} 12. Rb1
{[%emt 00:00:05] [%clk 00:02:15]} Rg8 {[%emt 00:00:08] [%clk 00:01:44]} 13. Rb3
{[%emt 00:00:03] [%clk 00:02:14]} Bf6 {[%emt 00:00:02] [%clk 00:01:44]} 14. Re1
{[%emt 00:00:07] [%clk 00:02:08]} Nd7 {[%emt 00:00:13] [%clk 00:01:34]} 15. Bf1
{[%emt 00:00:03] [%clk 00:02:06]} Nb6 {[%emt 00:00:05] [%clk 00:01:31]} 16. d6
{[%emt 00:00:13] [%clk 00:01:55]} Qd8 {[%emt 00:00:04] [%clk 00:01:30]} 17. Bf4
{[%emt 00:00:10] [%clk 00:01:47]} Bd7 {[%emt 00:00:02] [%clk 00:01:31]} 18. Qd2
{[%emt 00:00:05] [%clk 00:01:43]} Rg6 {[%emt 00:00:12] [%clk 00:01:22]} 19. Qa5
{[%emt 00:00:07] [%clk 00:01:36]} Bc6 {[%emt 00:00:10] [%clk 00:01:16]} 20. Qxc5
{[%emt 00:00:06] [%clk 00:01:32]} Bxf3 {[%emt 00:00:05] [%clk 00:01:14]} 21.
Rxf3 {[%emt 00:00:02] [%clk 00:01:31]} Rc8 {[%emt 00:00:05] [%clk 00:01:11]} 22.
Qxf5 {[%emt 00:00:11] [%clk 00:01:21]} Nxc4 {[%emt 00:00:08] [%clk 00:01:06]}
23. Qb5+ {[%emt 00:00:09] [%clk 00:01:13]} Kf8 {[%emt 00:00:22] [%clk 00:00:48]}
24. Bxc4 {[%emt 00:00:03] [%clk 00:01:12]} a6 {[%emt 00:00:07] [%clk 00:00:43]}
25. Qb3 {[%emt 00:00:02] [%clk 00:01:10]} b5 {[%emt 00:00:04] [%clk 00:00:42]}
26. Bf1 {[%emt 00:00:05] [%clk 00:01:06]} Kg8 {[%emt 00:00:11] [%clk 00:00:34]}
27. Rg3 {[%emt 00:00:09] [%clk 00:00:59]} Kh8 {[%emt 00:00:11] [%clk 00:00:25]}
28. Rxg6 {[%emt 00:00:03] [%clk 00:00:58]} hxg6 {[%emt 00:00:02] [%clk
00:00:26]} 29. Qe3 {[%emt 00:00:06] [%clk 00:00:53]} Rc6 {[%emt 00:00:07] [%clk
00:00:21]} 30. Rd1 {[%emt 00:00:06] [%clk 00:00:48]} Kg7 {[%emt 00:00:05] [%clk
00:00:19]} 31. Be5 {[%emt 00:00:04] [%clk 00:00:45]} Rc8 {[%emt 00:00:09] [%clk
00:00:14]} 32. d7 {[%emt 00:00:03] [%clk 00:00:42]} Ra8 {[%emt 00:00:03] [%clk
00:00:13]} 33. Bxf6+ {[%emt 00:00:03] [%clk 00:00:40]} Kxf6 {[%emt 00:00:02]
[%clk 00:00:14]} 34. Qd4+ {[%emt 00:00:03] [%clk 00:00:39]} Ke7 {[%emt 00:00:02]
[%clk 00:00:15]} 35. Qd6+ {[%emt 00:00:03] [%clk 00:00:38]} Kf6 {[%emt 00:00:02]
[%clk 00:00:16]} 36. g3 {[%clk 00:00:38]} Kg7 {[%emt 00:00:01] [%clk 00:00:17]}
37. h4 {[%emt 00:00:01] [%clk 00:00:39]} Rb8 {[%emt 00:00:01] [%clk 00:00:18]}
38. Qxb8 {[%emt 00:00:03] [%clk 00:00:38]} 1-0

[Site "Europe Echecs"]

[Event "Championnat d'Europe de Blitz"]
[Date "2024.12.09"]
[White "Hrisomalis, Theodoros"]
[Black "Pichot, Alan"]
[WhiteElo "2154"]
[BlackElo "2637"]
[Round "1.38"]
[Result "0-1"]
[TimeControl "180+2"]

1. e4 {[%emt 00:30:26] [%clk 00:03:03]} c5 {[%emt 00:00:02] [%clk 00:03:02]} 2.
Nf3 {[%emt 00:00:01] [%clk 00:03:03]} d6 {[%emt 00:00:02] [%clk 00:03:03]} 3. c3
{[%clk 00:03:04]} Nf6 {[%emt 00:00:02] [%clk 00:03:03]} 4. h3 {[%clk 00:03:05]}
Bd7 {[%emt 00:00:06] [%clk 00:02:59]} 5. Bd3 {[%emt 00:00:02] [%clk 00:03:05]}
Bc6 {[%emt 00:00:02] [%clk 00:02:58]} 6. Qe2 {[%emt 00:00:02] [%clk 00:03:06]}
e5 {[%emt 00:00:39] [%clk 00:02:21]} 7. Bc2 {[%emt 00:00:03] [%clk 00:03:05]}
Be7 {[%emt 00:00:02] [%clk 00:02:21]} 8. O-O {[%emt 00:00:04] [%clk 00:03:03]}
O-O {[%emt 00:00:03] [%clk 00:02:20]} 9. Re1 {[%emt 00:00:11] [%clk 00:02:54]}
b5 {[%emt 00:00:11] [%clk 00:02:11]} 10. d4 {[%emt 00:00:13] [%clk 00:02:43]}
Qc7 {[%emt 00:00:06] [%clk 00:02:07]} 11. Nbd2 {[%emt 00:00:32] [%clk 00:02:13]}
cxd4 {[%emt 00:00:14] [%clk 00:01:55]} 12. cxd4 {[%emt 00:00:01] [%clk
00:02:14]} Bb7 {[%emt 00:00:02] [%clk 00:01:56]} 13. Nf1 {[%emt 00:00:19] [%clk
00:01:57]} Nc6 {[%emt 00:00:14] [%clk 00:01:43]} 14. d5 {[%emt 00:00:24] [%clk
00:01:35]} Nb4 {[%emt 00:00:01] [%clk 00:01:44]} 15. Bb3 {[%emt 00:00:07] [%clk
00:01:30]} a5 {[%emt 00:00:10] [%clk 00:01:36]} 16. a3 {[%emt 00:00:27] [%clk
00:01:05]} Na6 {[%emt 00:00:01] [%clk 00:01:36]} 17. Ng3 {[%emt 00:00:08] [%clk
00:00:59]} Nc5 {[%emt 00:00:02] [%clk 00:01:37]} 18. Bc2 {[%emt 00:00:03] [%clk
00:00:59]} b4 {[%emt 00:00:03] [%clk 00:01:36]} 19. Bg5 {[%emt 00:00:18] [%clk
00:00:42]} Ba6 {[%emt 00:00:07] [%clk 00:01:31]} 20. Qe3 {[%emt 00:00:07] [%clk
00:00:36]} b3 {[%emt 00:00:04] [%clk 00:01:30]} 21. Bb1 {[%emt 00:00:05] [%clk
00:00:33]} Rfe8 {[%emt 00:00:15] [%clk 00:01:17]} 22. Rc1 {[%emt 00:00:17] [%clk
00:00:19]} Kh8 {[%emt 00:00:20] [%clk 00:00:58]} 23. Ne1 {[%emt 00:00:03] [%clk
00:00:19]} Rac8 {[%emt 00:00:04] [%clk 00:00:55]} 24. Nd3 {[%emt 00:00:03] [%clk
00:00:18]} Bxd3 {[%emt 00:00:21] [%clk 00:00:36]} 25. Bxd3 {[%emt 00:00:01]
[%clk 00:00:19]} g6 {[%emt 00:00:01] [%clk 00:00:37]} 26. Bb5 {[%emt 00:00:06]
[%clk 00:00:15]} Red8 {[%emt 00:00:06] [%clk 00:00:33]} 27. Qf3 {[%emt 00:00:06]
[%clk 00:00:10]} Nxd5 {[%emt 00:00:11] [%clk 00:00:24]} 28. Bxe7 {[%emt
00:00:06] [%clk 00:00:06]} Nxe7 {[%clk 00:00:24]} 29. Qxf7 {[%emt 00:00:05]
[%clk 00:00:04]} Rf8 {[%clk 00:00:25]} 30. Qc4 {[%emt 00:00:02] [%clk 00:00:04]}
Qb7 {[%emt 00:00:04] [%clk 00:00:24]} 31. Qe2 {[%emt 00:00:02] [%clk 00:00:04]}
Ne6 {[%emt 00:00:03] [%clk 00:00:23]} 32. Rxc8 {[%emt 00:00:04] [%clk 00:00:03]}
Qxc8 {[%emt 00:00:02] [%clk 00:00:23]} 33. Bd3 {[%emt 00:00:02]} Nf4 {[%emt
00:00:02] [%clk 00:00:22]} 34. Qe3 {[%clk 00:00:05]} Qc5 {[%emt 00:00:11] [%clk
00:00:13]} 35. Qxc5 {[%clk 00:00:05]} dxc5 {[%clk 00:00:14]} 36. Bc4 {[%clk
00:00:07]} a4 {[%emt 00:00:02] [%clk 00:00:15]} 37. Bb5 {[%emt 00:00:01] [%clk
00:00:07]} Ne6 {[%emt 00:00:05] [%clk 00:00:12]} 38. Bxa4 {[%emt 00:00:01] [%clk
00:00:08]} Nd4 {[%clk 00:00:13]} 39. Bd7 {[%emt 00:00:06] [%clk 00:00:05]} Rd8
{[%emt 00:00:01] [%clk 00:00:14]} 40. Bg4 {[%emt 00:00:02] [%clk 00:00:05]} Nec6
{[%emt 00:00:05] [%clk 00:00:11]} 41. Rc1 {[%emt 00:00:02] [%clk 00:00:05]} Nc2
{[%emt 00:00:04] [%clk 00:00:10]} 42. Bd1 {[%emt 00:00:02] [%clk 00:00:05]} N6d4
{[%emt 00:00:03] [%clk 00:00:09]} 43. Ne2 {[%emt 00:00:02] [%clk 00:00:05]} c4
{[%emt 00:00:06] [%clk 00:00:05]} 44. Bxc2 {[%emt 00:00:02] [%clk 00:00:05]}
Nxe2+ {[%clk 00:00:06]} 45. Kh2 {[%emt 00:00:02] [%clk 00:00:06]} Nxc1 {[%emt
00:00:01] [%clk 00:00:07]} 46. Bxb3 {[%emt 00:00:02] [%clk 00:00:06]} cxb3
{[%clk 00:00:08]} 47. Kg3 {[%emt 00:00:01] [%clk 00:00:06]} Nd3 {[%emt 00:00:02]
[%clk 00:00:09]} 48. Kg4 {[%emt 00:00:01] [%clk 00:00:07]} Nxb2 {[%emt 00:00:01]
[%clk 00:00:10]} 49. f4 {[%clk 00:00:08]} exf4 {[%emt 00:00:02] [%clk 00:00:11]}
50. Kxf4 {[%emt 00:00:01] [%clk 00:00:10]} Nc4 {[%emt 00:00:01] [%clk 00:00:11]}
0-1

[Site "Europe Echecs"]